Cogmind - Beta 17 @@@ ROGUE MODE // 2026.06.28 @ 16:05:19 Player: f3-rnm Result: Destroyed by P-80 Master with Gamma Rifle Performance ------------- Evolutions (9) 4500 Regions Visited (25) 5000 Robots Destroyed (133) 665 Value Destroyed (7277) 7277 Prototype IDs (60) 1200 Alien Tech Used (2) 400 Bonus (28229) 28229 TOTAL SCORE: 47271 Bonus ------- High Alert Combat Kills 530 Follower Combat Kills 1145 Prayed to X0-1V1 5000 Major X0-1V1 Interference 13500 Registered with UFD 300 Met Data Miner 300 MAIN.C Attacked Warlord 500 Met Sigix 2000 Met MAIN.C 5000 Friendly Fire -46 Cogmind --------- Core Integrity 0/1625 Matter 285/300 Energy 196/300 System Corruption 12% Temperature Cool (0) Movement Core (50) Location -1/Command Parts ------- > --- POWER (3) -------- (None) > --- PROPULSION (10) -- (None) > --- UTILITY (10) ----- Armor Integrity Analyzer > --- WEAPON (2) ------- (None) > --- INVENTORY (5) ---- Experimental Energy Well (0) Potential Cannon IN-MT5's Pitchfork "Insurrection" (17) Peak State ------------ > --- POWER ------------ Singularity Reactor > --- PROPULSION ------- Biometal Leg Improved Thunder Leg Centrium Leg Centrium Leg Myomer Exoskeleton > --- UTILITY ---------- Advanced Heat Sink Large Storage Unit Advanced Matter Compressor Advanced Weapon Cycler Advanced Reaction Control System Experimental Cloaking Device Centrium Medium Armor Plating Graphene Brace Advanced Force Field X0-1V1's Piety Tracker > --- WEAPON ----------- Heavy Scimitar of Distortion Sigix Broadsword > --- INVENTORY -------- Vortex Chain Reactor Advanced Energy Well Experimental Energy Well Experimental Thermal Shield Advanced Force Field System Mapper Potential Cannon Gamma Bomb Array Hellfire Missile Launcher Z-bomb Delivery System IN-MT5's Pitchfork "Insurrection" IN-MT5's Pitchfork "Insurrection" Heavy Scimitar of Distortion [Rating: 229] Favorites ----------- Power Enhanced Fission Core Engine Light Ion Engine Power Core Enhanced Fission Core Reactor Singularity Reactor Propulsion Cooled Gravmag System Treads Light Treads Leg Centrium Leg Hover Unit Cooled Gravmag System Flight Unit Biomechanical Wings Utility X0-1V1's Piety Tracker Device X0-1V1's Piety Tracker Storage Large Storage Unit Processor Improved Launcher Guidance Computer Hackware Improved Hacking Suite Protection Centrium Medium Armor Plating Weapon Heavy Scimitar of Distortion Energy Gun Enhanced Force Rifle Energy Cannon Advanced Plasma Cannon Ballistic Gun Assault Rifle Ballistic Cannon Battle Cannon Launcher Gamma Bomb Array Special Weapon Enhanced Flamer Impact Weapon Maul Slashing Weapon Heavy Scimitar of Distortion Build | -11 -10 -10 -8 -8 -6 -6 -6 -6 -5 -5 -5 -5 -5 -5 -5 -4 -4 -4 -4 -3 -3 -2 -2 -1 -1 ------- Run | Yrd Mat Sub Rec Scr Fac Low Low Dat Pro Fac Was Fac Upp Upp War Pro Fac Was Fac Res Tes Res Qua Acc Com Slots Evolved 18 | . . . . . 8 . . . . 2 . . . . . . 2 . . 2 . 2 . 2 . Power 1 | . . . . . . . . . . . . . . . . . . . . . . 1 . . . Propulsion 8 | . . . . . 4 . . . . . . . . . . . 1 . . 1 . . . 2 . Utility 8 | . . . . . 4 . . . . 1 . . . . . . 1 . . 1 . 1 . . . Weapon 1 | . . . . . . . . . . 1 . . . . . . . . . . . . . . . Parts Attached 179 | 6 1 6 2 6 7 2 5 . 2 34 5 2 1 . 1 5 13 1 4 7 27 9 19 3 11 Power 13 | 1 . . 1 . . . . . . 4 . . . . . 1 . . 1 . 1 2 1 . 1 Engine 2 | 1 . . 1 . . . . . . . . . . . . . . . . . . . . . . Core 5 | . . . . . . . . . . 4 . . . . . 1 . . . . . . . . . Reactor 6 | . . . . . . . . . . . . . . . . . . . 1 . 1 2 1 . 1 Propulsion 43 | 2 . . . 2 1 . 1 . 1 9 2 . . . . 1 5 . 1 1 5 1 4 2 5 Treads 5 | 2 . . . . . . . . . . . . . . . . . . . . . . 3 . . Leg 8 | . . . . . . . . . . . . . . . . . . . . . 4 1 1 . 2 Wheel . | . . . . . . . . . . . . . . . . . . . . . . . . . . Hover 21 | . . . . . 1 . 1 . . 5 2 . . . . 1 5 . 1 1 1 . . . 3 Flight 9 | . . . . 2 . . . . 1 4 . . . . . . . . . . . . . 2 . Utility 78 | 1 1 1 1 3 4 1 2 . . 12 2 1 . . . 1 5 1 2 4 14 4 13 1 4 Device 39 | . 1 1 1 1 . 1 . . . 4 . 1 . . . . 2 1 1 2 7 3 10 . 3 Storage 9 | 1 . . . 1 . . . . . 1 . . . . . . 1 . . . 4 1 . . . Processor 8 | . . . . . 2 . . . . 2 1 . . . . . . . . . 1 . . 1 1 Hackware 9 | . . . . . 1 . 2 . . 4 . . . . . . 1 . . 1 . . . . . Protection 13 | . . . . 1 1 . . . . 1 1 . . . . 1 1 . 1 1 2 . 3 . . Artifact . | . . . . . . . . . . . . . . . . . . . . . . . . . . Weapon 45 | 2 . 5 . 1 2 1 2 . 1 9 1 1 1 . 1 2 3 . . 2 7 2 1 . 1 Energy Gun 4 | . . . . . . . . . . 2 . . . . . . . . . . 2 . . . . Energy Cannon 5 | . . . . . 1 . . . . 1 . . 1 . . . . . . . . 1 . . 1 Ballistic Gun 4 | 2 . 1 . . . . . . . 1 . . . . . . . . . . . . . . . Ballistic Cannon 2 | . . 2 . . . . . . . . . . . . . . . . . . . . . . . Launcher 13 | . . . . . . 1 . . . 4 1 1 . . . 2 . . . 2 1 1 . . . Special Weapon 3 | . . 1 . 1 . . . . . . . . . . 1 . . . . . . . . . . Impact Weapon 3 | . . 1 . . 1 . 1 . . . . . . . . . . . . . . . . . . Slashing Weapon 11 | . . . . . . . 1 . 1 1 . . . . . . 3 . . . 4 . 1 . . Piercing Weapon . | . . . . . . . . . . . . . . . . . . . . . . . . . . Special Melee Weapon . | . . . . . . . . . . . . . . . . . . . . . . . . . . Unidentified Prototypes 36 | . 1 . . 1 . . . . . 5 . . . . . . 4 . 2 3 13 2 4 1 . Corrupted Parts 9 | . . . . . . . . . 2 . . . . . . . . . . . . . 7 . . System Corruption 69 | . . . . . . . . . 9 . . . . . . . . . . . . . 60 . . Parts Lost 34 | . . 4 . 2 . . . . 5 . . 1 . . 1 1 . . . 4 1 1 1 2 11 Power 2 | . . 1 . . . . . . . . . . . . . . . . . . . . . . 1 Propulsion 14 | . . . . . . . . . 3 . . . . . . . . . . 2 . . . 2 7 Utility 15 | . . 2 . 1 . . . . 1 . . 1 . . 1 1 . . . 2 1 1 1 . 3 Weapon 3 | . . 1 . 1 . . . . 1 . . . . . . . . . . . . . . . . Highest Loss Streak 5 | . . 3 . 2 . . . . 5 . . 1 . . 1 1 . . . 3 1 1 1 2 5 To Critical Strikes . | . . . . . . . . . . . . . . . . . . . . . . . . . . Average Backups 8 | . 2 5 7 5 3 3 3 5 4 7 10 10 9 9 9 9 9 10 9 9 9 11 13 4 3 Power . | . 1 1 . . . . . 1 1 1 1 1 1 1 . . . . . . 1 1 . . . Propulsion . | . 1 1 1 . . . . . . . 1 1 1 1 1 1 1 . . . . . . . . Utility 3 | . . 2 3 3 1 1 1 1 1 2 3 3 2 2 2 2 3 4 4 4 2 4 5 2 1 Weapon 4 | . . . 1 . 2 2 2 3 2 3 4 5 5 5 5 6 5 5 5 4 5 5 7 2 1 Tool/Special . | . . . . . . . . . . . . . . . . . . . . . . . . . . Unused Backups 27 | . . 1 . 9 3 . . . . 2 2 . . . . . . . 1 1 2 1 5 . . Power 2 | . . . . 1 . . . . . . . . . . . . . . . . 1 . . . . Propulsion 5 | . . 1 . 2 . . . . . 1 1 . . . . . . . . . . . . . . Utility 13 | . . . . 6 2 . . . . 1 1 . . . . . . . . . 1 1 1 . . Weapon 5 | . . . . . . . . . . . . . . . . . . . 1 1 . . 3 . . Tool/Special 2 | . . . . . 1 . . . . . . . . . . . . . . . . . 1 . . Average Slot Usage (%) 72 | . 92 89 79 50 41 56 64 66 48 82 98 92 87 88 83 80 89 100 100 88 78 82 71 6 15 Engine 1 | . 14 6 5 6 . . . . . . . . . . . . . . . . . . . . . Core 2 | . . . . . . . . . . 6 11 11 11 11 11 11 10 10 5 4 . . . . . Reactor 1 | . . . . . . . . . . . . . . . . . . . 4 4 3 8 3 . . Treads 5 | . 28 28 28 10 . . . . . . . . . . . . . . . . . . 5 . . Leg 4 | . . . . . . . . . . . . . . . . . . . . . 14 19 10 . 1 Hover 7 | . . . . . . 6 10 13 2 17 27 23 23 23 23 23 26 31 31 26 2 . . . 4 Flight 2 | . . . . 12 13 13 13 13 14 4 . . . . . . . . . . . . . 3 . Device 17 | . 7 12 5 8 . 2 6 6 6 12 11 10 17 17 17 13 17 23 26 22 27 28 29 . 2 Storage 6 | . 14 14 14 10 . . . . . 2 5 5 5 5 5 5 5 5 5 4 6 8 5 . . Processor 2 | . . . . . 11 13 9 6 6 10 11 11 5 5 5 5 5 5 5 4 . . . 3 3 Hackware 1 | . . . . . 1 6 9 13 13 8 5 3 . . . . . . . 1 . . . . . Protection 3 | . . . . . 12 13 10 6 . 2 4 5 5 5 3 3 5 5 5 5 6 4 5 . . Ballistic Gun 1 | . 28 12 . . . . . . . . . . . . . . . . . . . . . . . Ballistic Cannon 1 | . . 9 24 . . . . . . . . . . . . . . . . . . . . . . Launcher 1 | . . . . . . . . . . 2 6 8 11 11 7 6 5 2 . . . . 2 . . Slashing Weapon 5 | . . . . . . . 2 6 3 4 4 4 4 5 5 5 12 15 15 11 13 12 5 . . Peak Build Rating 229 | 6 19 24 14 25 30 48 64 57 57 97 103 107 102 102 103 106 134 135 147 154 191 219 229 44 81 Average Rating 109 | 4 13 19 11 11 24 35 50 57 43 81 96 102 101 102 97 99 123 134 144 144 174 207 205 16 34 On Entrance 74 | . 6 19 10 10 16 30 43 57 57 42 96 103 98 102 102 93 101 134 134 147 132 185 210 4 9 Avg Prop Armor Cover (%) 8 | . . . . . 5 5 9 13 12 2 . . . . . . . 2 3 . 5 . 4 . 23 Naked Turns 369 | . . . . 269 . . . . . . . . . . . . . . . . . . 62 36 2 Heaviest Build 136 | 11 12 14 15 24 10 13 14 8 8 50 61 58 64 59 63 59 64 64 74 73 104 131 136 . 41 Greatest Support 270 | 40 40 40 40 40 12 12 19 12 16 57 62 72 72 72 62 62 74 74 84 74 178 206 270 16 73 Greatest Overweight (x) 4 | 1 . . . 1 . 1 1 . . 1 1 . 1 . 1 . . . . 1 1 . 4 . . Average Overweight (x) . | . . . . . . . . . . . . . . . . . . . . . . . . . . Largest Inventory Capacity 15 | 8 8 8 8 15 5 5 5 5 5 10 10 10 10 10 10 10 10 10 10 10 15 15 15 5 5 Average Capacity 10 | 6 8 8 8 7 5 5 5 5 5 7 10 10 10 10 10 10 10 10 10 10 12 15 14 5 5 Most Carried 15 | 2 4 8 8 8 5 5 5 5 5 10 10 10 10 9 10 10 10 10 10 10 15 15 15 5 5 Average Carried 9 | . 2 6 7 5 4 4 4 5 4 7 9 9 9 9 8 9 9 9 9 9 12 14 14 4 4 Final Capacity 15 | 8 8 8 8 5 5 5 5 5 5 10 10 10 10 10 10 10 10 10 10 10 15 15 5 5 5 Final Carried 15 | 2 4 8 8 5 4 5 5 5 4 10 10 10 9 9 9 10 10 10 10 10 15 15 5 5 4 Transmogrified Parts 2 | . . . . 2 . . . . . . . . . . . . . . . . . . . . . Integrity Recovered 9 | . . . . 9 . . . . . . . . . . . . . . . . . . . . . Class Distribution -------------------- 78% | Mutant 15% | Scavenger-Mutant 4% | Hacker-Mutant Dominant Class ---------------- Mutant | -10/Materials Mutant | -10/Subcaves Mutant | -8/Recycling Mutant | -8/Scraptown Mutant | -6/Factory Mutant | -6/Lower Caves Hacker-Mutant | -6/Lower Caves Hacker-Mutant | -6/Data Miner Hacker-Mutant | -5/Proximity Caves Mutant | -5/Factory Mutant | -5/Waste Mutant | -5/Factory Mutant | -5/Upper Caves Mutant | -5/Upper Caves Mutant | -5/Warlord Mutant | -4/Proximity Caves Mutant | -4/Factory Mutant | -4/Waste Mutant | -4/Factory Mutant | -3/Research Mutant | -3/Testing Mutant | -2/Research Scavenger-Mutant | -2/Quarantine Mutant | -1/Access Mutant | -1/Command Resources | -11 -10 -10 -8 -8 -6 -6 -6 -6 -5 -5 -5 -5 -5 -5 -5 -4 -4 -4 -4 -3 -3 -2 -2 -1 -1 ----------- Run | Yrd Mat Sub Rec Scr Fac Low Low Dat Pro Fac Was Fac Upp Upp War Pro Fac Was Fac Res Tes Res Qua Acc Com Matter Collected 6850 | 247 168 244 . 192 . 30 60 . 23 324 142 256 147 93 2 210 255 655 289 208 1052 121 1508 . 624 Remotely . | . . . . . . . . . . . . . . . . . . . . . . . . . . Salvage Created 7383 | . . 160 . . . 132 13 . 48 290 . 247 144 38 . 200 291 998 222 631 1316 662 1479 180 332 Parts 314 | . . 10 . . . 3 . . 4 12 . 13 9 2 . 14 10 6 4 26 54 25 102 6 14 Haulers Intercepted 8 | . . . . . . . . . . . . 1 . . . . 1 . . 2 1 3 . . . Recyclers Shooed 1 | . . . . . . . . . . 1 . . . . . . . . . . . . . . . Parts Field Recycled . | . . . . . . . . . . . . . . . . . . . . . . . . . . Retrieved Matter . | . . . . . . . . . . . . . . . . . . . . . . . . . . Parts Self-Destructed 38 | . . 13 . . . 4 . . 3 . . . 3 . . 15 . . . . . . . . . Prevented 1 | . . . . . . 1 . . . . . . . . . . . . . . . . . . . Parts Restored . | . . . . . . . . . . . . . . . . . . . . . . . . . . Kills | -11 -10 -10 -8 -8 -6 -6 -6 -6 -5 -5 -5 -5 -5 -5 -5 -4 -4 -4 -4 -3 -3 -2 -2 -1 -1 ------- Run | Yrd Mat Sub Rec Scr Fac Low Low Dat Pro Fac Was Fac Upp Upp War Pro Fac Was Fac Res Tes Res Qua Acc Com Combat Hostiles Destroyed 96 | . . 8 . . . 5 1 . 2 . . 5 4 . . 7 1 4 2 7 13 10 18 3 6 Melee 23 | . . 1 . . . . . . 1 . . . . . . . 1 . 2 2 9 2 5 . . Guns 2 | . . 2 . . . . . . . . . . . . . . . . . . . . . . . Cannons 8 | . . 4 . . . . . . . . . . . . . . . . . . . 1 . . 3 AOE 45 | . . 1 . . . 4 . . 1 . . 5 4 . . 7 . 3 . 4 2 7 2 3 2 Classes Destroyed 19 | . . 3 . . . . 1 . . 4 . 4 1 . . 1 1 1 1 . 2 . . . . Worker 9 | . . . . . . . . . . 1 . 3 . . . . . . 1 1 1 2 . . . Builder 5 | . . . . . . . . . . . . 2 . . . . . . . 1 2 . . . . Tunneler 1 | . . . . . . . . . . . . 1 . . . . . . . . . . . . . Hauler 8 | . . . . . . . . . . . . 1 . . . . 1 . . 2 1 3 . . . Recycler 6 | . . . . . . . . . . 1 . . . . . . 1 . . 1 2 . . 1 . Operator 4 | . . . . . . . . . . 2 . . . . . . . . 1 1 . . . . . Drone 1 | . . . . . . . . . . . . . . . . 1 . . . . . . . . . Watcher 2 | . . . . . . . . . . 2 . . . . . . . . . . . . . . . Swarmer 30 | . . 6 . . . 5 . . 2 . . . 4 . . 4 . . . 4 2 . . 3 . Grunt 21 | . . . . . . . . . . . . 5 . . . 2 . . . 2 2 6 4 . . Researcher 4 | . . . . . . . . . . . . . . . . . . . . . 3 . 1 . . Sentry 5 | . . 1 . . . . . . . . . . . . . . . . . . 3 1 . . . Hunter 8 | . . . . . . . . . . . . . . . . . . . . . 2 2 1 . 3 Programmer 15 | . . . . . . . . . . . . . . . . . 1 . . 1 4 1 5 . 3 Compactor 4 | . . . . . . . . . . . . . . . . . . 4 . . . . . . . Quarantine Guard 8 | . . . . . . . . . . . . . . . . . . . . . . . 8 . . Subdweller 1 | . . 1 . . . . . . . . . . . . . . . . . . . . . . . Decomposer 3 | . . . . . . . . . . . . . 3 . . . . . . . . . . . . Samaritan 2 | . . . . . . . . . . . . . 1 1 . . . . . . . . . . . Thief 1 | . . . . . . . 1 . . . . . . . . . . . . . . . . . . Golem 2 | . . . . . . . . . . . . . . . . . . . 2 . . . . . . Best Kill Streak 9 | . . 3 . . . 2 1 . 1 2 . 9 4 . . 4 1 4 2 7 4 5 5 4 4 Combat Bots Only 5 | . . 3 . . . 3 1 . 1 . . 5 4 . . 4 1 4 2 4 3 4 5 3 4 Max Kills in Single Turn 5 | . . 1 . . . 1 1 . 1 1 . 2 3 1 . 3 1 2 1 5 3 5 2 4 2 Gunslinging . | . . . . . . . . . . . . . . . . . . . . . . . . . . Exploded 3 | . . 1 . . . 1 . . 1 . . 2 3 . . 3 . 2 . 3 2 2 1 3 1 Melee 1 | . . 1 . . . . . . 1 . . . . . . . 1 . 1 1 1 1 1 . . Uniques/NPCs Destroyed . | . . . . . . . . . . . . . . . . . . . . . . . . . . Combat | -11 -10 -10 -8 -8 -6 -6 -6 -6 -5 -5 -5 -5 -5 -5 -5 -4 -4 -4 -4 -3 -3 -2 -2 -1 -1 -------- Run | Yrd Mat Sub Rec Scr Fac Low Low Dat Pro Fac Was Fac Upp Upp War Pro Fac Was Fac Res Tes Res Qua Acc Com Hostile Shots Fired 999 | . . 60 . 57 15 29 9 . 56 33 . 19 5 10 5 41 4 . 39 48 194 76 97 39 163 Missed 450 | . . 17 . 34 9 10 9 . 26 14 . 10 1 4 2 16 2 . 17 20 92 33 48 21 65 Hits 549 | . . 43 . 23 6 19 . . 30 19 . 9 4 6 3 25 2 . 22 28 102 43 49 18 98 Melee 1 | . . . . 1 . . . . . . . . . . . . . . . . . . . . . Projectile 548 | . . 43 . 22 6 19 . . 30 19 . 9 4 6 3 25 2 . 22 28 102 43 49 18 98 Critical Strikes 31 | . . 1 . 1 1 . . . . 2 . . . 2 . . 1 . 3 1 6 2 5 . 6 Actively Blocked 14 | . . . . . . . . . . . . . . . . . . . . 1 6 2 5 . . Part Disruptions 2 | . . . . . . . . . . . . . . . . . . . . . . . . . 2 Damage Taken 12414 | . . 553 . 447 67 312 . . 512 372 32 237 55 114 197 516 131 22 597 687 1045 477 2594 605 2842 Core 4509 | . . 61 . 290 20 91 . . 224 109 . 58 . . . 85 8 . 83 46 116 48 1627 300 1343 Absorbed by Shields 2623 | . . . . . . . . . . . . . . . . . . . . 21 1060 504 1026 . 12 Redirected to Shielding 196 | . . . . 5 . 30 . . 33 . . . . . . . . . . 20 108 . . . . Ignored by Resistances 37 | . . . . . . . . . . . . 5 . . . . . . . . . . . . 32 Regen/Repaired (Parts) 558 | . . . . . . . . . . . 127 . . . . . . 84 . 73 . . 274 . . Core Remaining (%) 72 | 100 . . . 26 . . . . 83 . . . . . . 75 . . 92 . 87 . 42 . . Volleys Fired 159 | . 1 28 . . 7 7 . . 3 7 . 8 5 . 7 9 2 20 . 2 1 8 33 4 7 Largest 2 | . 2 2 . . 1 1 . . 1 2 . 2 2 . 1 2 1 1 . 1 1 1 1 1 1 Hottest 520 | . 40 113 . . 65 43 . . 43 162 . 86 98 . 80 520 260 260 . 46 30 200 80 200 200 Shots Fired 201 | . 2 52 . . 7 7 . . 3 10 1 14 8 . 7 11 2 20 . 2 1 8 34 4 8 Gun 25 | . 2 16 . . . . . . . 7 . . . . . . . . . . . . . . . Cannon 62 | . . 35 . . 7 . . . . 3 . . 2 . . . . . . . . 3 . 4 8 Launcher 113 | . . . . . . 7 . . 3 . 1 14 6 . 7 11 2 20 . 2 1 5 34 . . Special 1 | . . 1 . . . . . . . . . . . . . . . . . . . . . . . Kinetic 56 | . 2 51 . . . . . . . 3 . . . . . . . . . . . . . . . Thermal 53 | . . 1 . . 7 . . . . 7 . . 2 . . 11 2 9 . . . 3 . 4 7 Explosive 41 | . . . . . . . . . . . 1 14 6 . 1 . . 11 . 2 1 5 . . . Electromagnetic 51 | . . . . . . 7 . . 3 . . . . . 6 . . . . . . . 34 . 1 Robot Hit Streak 11 | . 2 5 . . . 3 . . 1 3 . 8 9 . . 3 . 8 . . 3 5 11 . 5 Robot Miss Streak 5 | . . 5 . . . 1 . . 2 . 1 . 2 . . 1 . 2 . . . 1 4 3 . Penetration Max . | . . . . . . . . . . . . . . . . . . . . . . . . . . Secondary Targets . | . . . . . . . . . . . . . . . . . . . . . . . . . . Shots Hit Robots 199 | . 2 20 . . . 4 1 . 2 9 . 11 5 2 . 4 3 13 9 18 42 15 34 . 5 Core Hits 181 | . 1 7 . . . 4 . . 2 5 . 17 7 1 . 9 2 7 6 14 21 16 53 3 6 Critical Kills 1 | . . . . . . . . . . . . . . . . . . . . . . . . . 1 Critical Parts Destroyed . | . . . . . . . . . . . . . . . . . . . . . . . . . . Critical Strikes 8 | . . 2 . . . . 1 . . . . . . . . . . . . 3 1 . . . 1 Meltdown 1 | . . . . . . . . . . . . . . . . . . . . . . . . . 1 Blast 2 | . . 2 . . . . . . . . . . . . . . . . . . . . . . . Smash 1 | . . . . . . . 1 . . . . . . . . . . . . . . . . . . Sever 4 | . . . . . . . . . . . . . . . . . . . . 3 1 . . . . Melee Attacks 248 | . . 7 . 3 4 3 3 . 5 21 1 4 8 2 1 1 4 . 17 37 79 14 34 . . Impact 24 | . . 7 . 3 4 3 3 . 1 . 1 2 . . . . . . . . . . . . . Slashing 224 | . . . . . . . . . 4 21 . 2 8 2 1 1 4 . 17 37 79 14 34 . . Piercing . | . . . . . . . . . . . . . . . . . . . . . . . . . . Sneak Attacks 34 | . . . . . . . . . . 4 . 3 4 2 . . 2 . 1 4 9 3 2 . . Combat Hostiles 2 | . . . . . . . . . . . . . . . . . . . . 1 . . 1 . . Follow-up Attacks 21 | . . . . . . . . . . . . . . . . . . . 2 3 13 1 2 . . Damage Inflicted 20498 | . 19 665 . . . 359 61 . 133 582 29 1622 804 180 . 668 280 1852 701 1699 3253 3165 2811 510 1105 Guns 129 | . 19 94 . . . . . . . 16 . . . . . . . . . . . . . . . Cannons 1307 | . . 199 . . . . . . . . . . . . . . . . . . . 473 . . 635 Explosions 10582 | . . . . . . 259 . . 85 . 29 1304 448 . . 668 . 1852 . 546 670 2056 1687 510 468 Melee 8478 | . . 372 . . . 100 61 . 48 566 . 318 356 180 . . 280 . 701 1153 2583 636 1124 . . Ramming 2 | . . . . . . . . . . . . . . . . . . . . . . . . . 2 Kinetic 328 | . 19 293 . . . . . . . 16 . . . . . . . . . . . . . . . Thermal 4135 | . . . . . . . . . . . . . . . . 668 . 568 . . . 1011 275 510 1103 Explosive 5799 | . . . . . . . . . . . 29 1304 448 . . . . 1284 . 546 670 1518 . . . Electromagnetic 1756 | . . . . . . 259 . . 85 . . . . . . . . . . . . . 1412 . . Impact 740 | . . 372 . . . 100 61 . . . . 207 . . . . . . . . . . . . . Slashing 7738 | . . . . . . . . . 48 566 . 111 356 180 . . 280 . 701 1153 2583 636 1124 . . Piercing . | . . . . . . . . . . . . . . . . . . . . . . . . . . Highest Corruption 42 | . . . . . . . 11 11 20 . 14 14 14 14 14 14 2 2 10 4 8 1 42 . 11 Average Corruption 9 | . . . . . . . 11 11 18 . 10 14 14 14 14 14 1 2 10 2 6 1 11 . 3 Corruption Purged . | . . . . . . . . . . . . . . . . . . . . . . . . . . Corruption Blocked . | . . . . . . . . . . . . . . . . . . . . . . . . . . Effects 202 | . . . . . . . 2 . 6 . 6 15 15 7 4 10 2 3 4 1 34 . 87 . 6 Message Errors 45 | . . . . . . . . . 1 . . 1 5 4 1 4 . 1 . . 8 . 20 . . Matter Fused 48 | . . . . . . . . . 2 . 1 2 1 1 . 2 . . 1 . 9 . 27 . 2 Heat Flow Errors 25 | . . . . . . . 1 . 1 . . 2 4 . 1 . 1 . . . 3 . 10 . 2 Energy Discharges 26 | . . . . . . . . . . . 2 5 1 1 . 1 . 1 . . 2 . 11 . 2 Parts Rejected 6 | . . . . . . . . . . . . . . . . 2 . 1 . . 2 . 1 . . Parts Fused 1 | . . . . . . . . . . . . . 1 . . . . . . . . . . . . Data Loss (minor) 27 | . . . . . . . 1 . . . 2 2 2 1 2 1 . . 2 . 6 . 8 . . Data Loss (major) 10 | . . . . . . . . . 1 . . . . . . . 1 . 1 1 2 . 4 . . Misfires 3 | . . . . . . . . . . . 1 . . . . . . . . . . . 2 . . Alerts 3 | . . . . . . . . . . . . . . . . . . . . . 2 . 1 . . Misdirections 7 | . . . . . . . . . 1 . . 3 1 . . . . . . . . . 2 . . Weapon Failures 1 | . . . . . . . . . . . . . . . . . . . . . . . 1 . . Overload Shots . | . . . . . . . . . . . . . . . . . . . . . . . . . . Overflow Damage 2183 | . . 93 . . . 35 . . . 124 . 290 163 35 . . 50 . 177 96 485 356 173 83 23 Projectiles 155 | . . 11 . . . . . . . . . . . . . . . . . . . 121 . . 23 Explosions 419 | . . . . . . 4 . . . . . 72 19 . . . . . . 6 . 235 . 83 . Melee 1609 | . . 82 . . . 31 . . . 124 . 218 144 35 . . 50 . 177 90 485 . 173 . . Knockbacks 7 | . . 6 . . . . 1 . . . . . . . . . . . . . . . . . . Impact 5 | . . 4 . . . . 1 . . . . . . . . . . . . . . . . . . Kinetic 2 | . . 2 . . . . . . . . . . . . . . . . . . . . . . . Secondary . | . . . . . . . . . . . . . . . . . . . . . . . . . . Self-Inflicted Damage 416 | . . . . . . . . . 13 . . . . . 18 . . 22 . . . . 111 219 33 Shots 20 | . . . . . . . . . 2 . . . . . 2 . . 1 . . . . 11 3 1 Rammed 1 | . . . . . . . . . . . . . . . . . . . . . . . . . 1 Targets Rammed 1 | . . . . . . . . . . . . . . . . . . . . . . . . . 1 Kicked . | . . . . . . . . . . . . . . . . . . . . . . . . . . Crushed . | . . . . . . . . . . . . . . . . . . . . . . . . . . Highest Temperature 5747 | . . 158 . . . . 192 . 66 41 98 267 262 21 304 200 188 200 135 5 204 258 5747 47 306 Average Temperature 356 | . . 103 . . . . 97 . 41 18 48 95 100 9 107 135 78 128 71 5 90 105 425 33 99 Received Heat Transfer 824 | . . 36 . 60 42 . . . . 93 . 63 . 90 9 72 . . 154 33 47 28 16 18 63 Effects 58 | . . . . . . . . . . . . . . . 1 . . . . . . . 57 . . Energy Bleed 11 | . . . . . . . . . . . . . . . 1 . . . . . . . 10 . . Interference 8 | . . . . . . . . . . . . . . . . . . . . . . . 8 . . Matter Decay 8 | . . . . . . . . . . . . . . . . . . . . . . . 8 . . Short Circuit 8 | . . . . . . . . . . . . . . . . . . . . . . . 8 . . Damage (minor) 3 | . . . . . . . . . . . . . . . . . . . . . . . 3 . . Damage (major) 13 | . . . . . . . . . . . . . . . . . . . . . . . 13 . . Damage (core) 7 | . . . . . . . . . . . . . . . . . . . . . . . 7 . . Siege Activations . | . . . . . . . . . . . . . . . . . . . . . . . . . . Martial Activations . | . . . . . . . . . . . . . . . . . . . . . . . . . . Shielding Activations . | . . . . . . . . . . . . . . . . . . . . . . . . . . Robots Disrupted . | . . . . . . . . . . . . . . . . . . . . . . . . . . Combat Hostiles . | . . . . . . . . . . . . . . . . . . . . . . . . . . Robots Corrupted 15 | . . 1 . . . 1 1 . . . . 2 . . . . . . . . . . 10 . . Combat Hostiles 13 | . . 1 . . . 1 1 . . . . . . . . . . . . . . . 10 . . Parts Fried 32 | . . 1 . . . 1 3 . 1 . . 4 . . . . . . . . . . 22 . . Impact Corruptions 11 | . . 2 . . . 3 1 . . . . 5 . . . . . . . . . . . . . Robots Melted 1 | . . . . . . . . . . . . . . . . . . . . . . . . . 1 Combat Hostiles 1 | . . . . . . . . . . . . . . . . . . . . . . . . . 1 Parts Melted 7 | . . . . . . . . . . . . . . . . . . . . . 2 . 2 1 2 Heat Transferred 4030 | . . . . . . . . . . . . . . . . 880 . 1200 . . . 630 200 480 640 Parts Sabotaged . | . . . . . . . . . . . . . . . . . . . . . . . . . . Parts Stolen . | . . . . . . . . . . . . . . . . . . . . . . . . . . Parts Stripped 23 | . . . . . . . . . . . . . . . . . . . . 6 17 . . . . Power Chain Reactions 5 | . . . . . . . . . . . . . . . 1 . . . . . . . 4 . . Alert | -11 -10 -10 -8 -8 -6 -6 -6 -6 -5 -5 -5 -5 -5 -5 -5 -4 -4 -4 -4 -3 -3 -2 -2 -1 -1 ------- Run | Yrd Mat Sub Rec Scr Fac Low Low Dat Pro Fac Was Fac Upp Upp War Pro Fac Was Fac Res Tes Res Qua Acc Com Maximum Alert Level 3 | . . . . . . . . . . 1 . 1 . . . . 1 . 3 2 2 2 2 1 2 Low Security (%) 33 | 100 100 . 100 . 100 . . . . 82 100 42 . . . . 6 100 4 . . . 16 77 4 Level 1 43 | . . . . . . . . . . 17 . 57 . . . . 93 . 30 10 19 81 73 22 40 Level 2 21 | . . . . . . . . . . . . . . . . . . . 4 89 80 18 9 . 55 Level 3 2 | . . . . . . . . . . . . . . . . . . . 60 . . . . . . Level 4 . | . . . . . . . . . . . . . . . . . . . . . . . . . . Level 5 . | . . . . . . . . . . . . . . . . . . . . . . . . . . High Security . | . . . . . . . . . . . . . . . . . . . . . . . . . . Max Security . | . . . . . . . . . . . . . . . . . . . . . . . . . . Peak Influence 989 | . . . 45 . 30 . . . . 271 55 298 . . . . 337 113 989 541 666 503 443 348 586 Initial 450 | . . . 45 . . . . . . 75 45 . . . . . 337 59 . 450 270 345 273 180 212 Average 282 | . . . 7 . 6 . . . . 152 22 172 . . . . 298 44 682 438 507 323 296 188 385 Influence Increases 7053 | . . 215 . . 48 205 45 . 190 489 114 362 90 60 45 180 364 124 1238 312 835 366 734 273 764 Destroy 0b10 Robot/C 2560 | . . 140 . . . 100 . . 40 100 . 100 80 . . 120 20 . 340 160 420 200 380 60 300 Destroy 0b10 Robot/NC 230 | . . . . . . . . . . 20 . 35 . . . 5 10 . 55 30 35 25 . 5 10 Destroy Leader 446 | . . . . . . . . . . 14 . 22 10 . . 10 12 . 68 24 50 36 120 10 70 Allied During Kill 304 | . . . . . . . . . . 32 . . . . . . . . 220 7 39 . . . 6 Successful Hack 61 | . . . . . . . . . . 34 . 19 . . . . 8 . . . . . . . . Disable Machine 555 | . . . . . . . . . . 15 . 30 . . . . . . 210 . 90 . 180 15 15 Anti-Garrison Action 150 | . . . . . . . . . . . . . . . . . . . 150 . . . . . . Destroy Structure 1023 | . . . . . 3 . . . . 32 114 96 . . . . 14 124 150 46 54 105 54 108 123 Advance Influence 300 | . . . . . . . . . . . . . . . . . 300 . . . . . . . . Partial Spotted 90 | . . . . . 15 . . . . 15 . . . . . . . . . 15 . . . . 45 Lose Combat Pursuer 1080 | . . 75 . . 30 105 45 . 150 75 . 60 . 60 45 45 . . 45 30 45 . . 75 195 Miscellaneous 254 | . . . . . . . . . . 152 . . . . . . . . . . 102 . . . . Influence Decreases 6553 | . . 120 95 . 48 80 125 45 70 479 244 147 220 97 48 165 253 295 380 688 702 494 920 241 597 Entered New Map 1921 | . . . 50 . . . 25 45 . 45 85 . 80 17 48 45 23 112 . 408 212 270 214 121 121 Time Decay 3503 | . . 80 45 . 48 80 100 . 40 374 60 137 140 80 . 110 130 123 140 160 440 214 696 100 206 Search Patrol Dispatched 100 | . . . . . . . . . . . . . . . . . 100 . . . . . . . . Lost Part 290 | . . 40 . . . . . . 30 . . 10 . . . 10 . . . 40 10 10 10 20 110 Lost Ally 739 | . . . . . . . . . . 60 99 . . . . . . 60 240 80 40 . . . 160 Squads Dispatched 43 | . . . . . 2 . . . . 3 . 6 . . . . 1 . 10 5 4 1 3 2 6 Investigation 10 | . . . . . 2 . . . . 2 . 2 . . . . 1 . . 1 . . 1 . 1 Extermination 12 | . . . . . . . . . . 1 . 1 . . . . . . 1 1 2 1 2 1 2 Reinforcement 13 | . . . . . . . . . . . . 3 . . . . . . 2 3 1 . . 1 3 Assault 5 | . . . . . . . . . . . . . . . . . . . 4 . 1 . . . . Garrison 3 | . . . . . . . . . . . . . . . . . . . 3 . . . . . . Intercept . | . . . . . . . . . . . . . . . . . . . . . . . . . . Searches Triggered 1 | . . . . . . . . . . . . . . . . . 1 . . . . . . . . Data Miner Redirects 4 | . . . . . . . . . . 1 . . . . . . . . 2 . 1 . . . . Construction Impeded 2 | . . . . . . . . . . . . 1 . . . . . . . 1 . . . . . Haulers Reinforced 1 | . . . . . . . . . . . . . . . . . . . . 1 . . . . . Active Scanning Responses . | . . . . . . . . . . . . . . . . . . . . . . . . . . Cargo Convoy Interrupts . | . . . . . . . . . . . . . . . . . . . . . . . . . . Stealth | -11 -10 -10 -8 -8 -6 -6 -6 -6 -5 -5 -5 -5 -5 -5 -5 -4 -4 -4 -4 -3 -3 -2 -2 -1 -1 --------- Run | Yrd Mat Sub Rec Scr Fac Low Low Dat Pro Fac Was Fac Upp Upp War Pro Fac Was Fac Res Tes Res Qua Acc Com Distress Signals 14 | . . . . . 1 . . . . . . 1 . . . . . . 4 4 3 . . . 1 Communications Jammed . | . . . . . . . . . . . . . . . . . . . . . . . . . . Distress Signals . | . . . . . . . . . . . . . . . . . . . . . . . . . . Times Spotted 324 | . 2 12 . 29 13 11 8 . 12 19 4 12 3 8 5 24 6 6 19 25 36 13 19 9 29 Peak Tracking Total 28 | . 2 6 . 28 13 9 4 . 5 5 2 6 4 4 4 4 4 3 5 13 8 4 4 5 9 Tactical Retreats 40 | . . 2 . 1 1 5 3 . 5 4 . 2 . 2 1 1 . . 3 2 2 . . 2 4 Traps | -11 -10 -10 -8 -8 -6 -6 -6 -6 -5 -5 -5 -5 -5 -5 -5 -4 -4 -4 -4 -3 -3 -2 -2 -1 -1 ------- Run | Yrd Mat Sub Rec Scr Fac Low Low Dat Pro Fac Was Fac Upp Upp War Pro Fac Was Fac Res Tes Res Qua Acc Com Traps Triggered 16 | . . . . . . . . . . 4 . 1 . . 1 . 1 . . 1 1 1 5 . 1 Indirectly 1 | . . . . . . . . . . . . . . . 1 . . . . . . . . . . Trap Hack Attempts . | . . . . . . . . . . . . . . . . . . . . . . . . . . Triggered . | . . . . . . . . . . . . . . . . . . . . . . . . . . Disarmed . | . . . . . . . . . . . . . . . . . . . . . . . . . . Reprogrammed . | . . . . . . . . . . . . . . . . . . . . . . . . . . Reused . | . . . . . . . . . . . . . . . . . . . . . . . . . . Traps Extracted . | . . . . . . . . . . . . . . . . . . . . . . . . . . Installed . | . . . . . . . . . . . . . . . . . . . . . . . . . . Triggered . | . . . . . . . . . . . . . . . . . . . . . . . . . . Most Traps Carried 2 | . . . . . . 2 2 . . 1 . . . . . . . . . . . . . . . Machines | -11 -10 -10 -8 -8 -6 -6 -6 -6 -5 -5 -5 -5 -5 -5 -5 -4 -4 -4 -4 -3 -3 -2 -2 -1 -1 ---------- Run | Yrd Mat Sub Rec Scr Fac Low Low Dat Pro Fac Was Fac Upp Upp War Pro Fac Was Fac Res Tes Res Qua Acc Com Machines Disabled 43 | . . 1 . 2 . . . . . 1 . 2 . . 2 . . . 15 . 6 . 12 1 1 Max in Single Turn 2 | . . 1 . 1 . . . . . 1 . 2 . . 2 . . . . . 1 . 2 1 1 Garrison Access 4 | . . . . . . . . . . 2 . . . . . . 1 . 1 . . . . . . Energy Cycler 1 | . . . . . . . . . . . . . . . . . . . . . . . . 1 . Machines Repaired . | . . . . . . . . . . . . . . . . . . . . . . . . . . Machines Dismantled . | . . . . . . . . . . . . . . . . . . . . . . . . . . Machines Sabotaged . | . . . . . . . . . . . . . . . . . . . . . . . . . . Overloaded Fab Kills . | . . . . . . . . . . . . . . . . . . . . . . . . . . Hacking | -11 -10 -10 -8 -8 -6 -6 -6 -6 -5 -5 -5 -5 -5 -5 -5 -4 -4 -4 -4 -3 -3 -2 -2 -1 -1 --------- Run | Yrd Mat Sub Rec Scr Fac Low Low Dat Pro Fac Was Fac Upp Upp War Pro Fac Was Fac Res Tes Res Qua Acc Com Machines Accessed 34 | . . . . 1 3 . 1 3 . 11 . 3 . . . . 3 . 1 2 . 2 2 . 2 Terminals 14 | . . . . . 2 . . . . 4 . 2 . . . . 1 . 1 1 . 1 1 . 1 Fabricators 5 | . . . . . . . . . . 3 . 1 . . . . 1 . . . . . . . . Repair Stations 4 | . . . . . 1 . . . . 1 . . . . . . . . . 1 . . . . 1 Recycling Units 1 | . . . . . . . . . . 1 . . . . . . . . . . . . . . . Scanalyzers . | . . . . . . . . . . . . . . . . . . . . . . . . . . Garrison Access 5 | . . . . . . . . . . 2 . . . . . . 1 . . . . 1 1 . . Total Hacks 102 | . . . . 18 8 . 1 24 . 24 . 6 . . . . 6 . 2 4 . 3 2 . 4 Successful 64 | . . . . 18 . . 1 24 . 12 . 4 . . . . 2 . . 1 . 1 1 . . Failed 38 | . . . . . 8 . . . . 12 . 2 . . . . 4 . 2 3 . 2 1 . 4 Catastrophic 11 | . . . . . 4 . . . . 1 . 1 . . . . 2 . 1 . . 1 . . 1 Database Lockouts . | . . . . . . . . . . . . . . . . . . . . . . . . . . Manual 29 | . 4 . . . 6 . . . . 10 . 1 . . . . 5 . . 3 . . . . . Terminals 32 | . . . . . 6 . . . . 11 . 3 . . . . 3 . 2 1 . 2 1 . 3 Fabricators 14 | . . . . . . . . . . 9 . 3 . . . . 2 . . . . . . . . Repair Stations 7 | . . . . . 2 . . . . 1 . . . . . . . . . 3 . . . . 1 Recycling Units 1 | . . . . . . . . . . 1 . . . . . . . . . . . . . . . Scanalyzers . | . . . . . . . . . . . . . . . . . . . . . . . . . . Garrison Access 5 | . . . . . . . . . . 2 . . . . . . 1 . . . . 1 1 . . Terminal Hacks 49 | . . . . 18 . . 1 24 . 1 . 2 . . . . 1 . . . . 1 1 . . Record 24 | . . . . 18 . . . 6 . . . . . . . . . . . . . . . . . Part Schematic 10 | . . . . . . . . 10 . . . . . . . . . . . . . . . . . Robot Schematic 5 | . . . . . . . . 5 . . . . . . . . . . . . . . . . . Prototype ID Bank 3 | . . . . . . . . 3 . . . . . . . . . . . . . . . . . Open Door 2 | . . . . . . . 1 . . . . . . . . . . . . . . . 1 . . Branch Access Points 3 | . . . . . . . . . . 1 . 1 . . . . 1 . . . . . . . . Alert Level 1 | . . . . . . . . . . . . . . . . . . . . . . 1 . . . Registered Prototypes 1 | . . . . . . . . . . . . 1 . . . . . . . . . . . . . Fabricator Hacks 5 | . . . . . . . . . . 3 . 2 . . . . . . . . . . . . . Load Schematic 3 | . . . . . . . . . . 2 . 1 . . . . . . . . . . . . . Build 2 | . . . . . . . . . . 1 . 1 . . . . . . . . . . . . . Repair Station Hacks 1 | . . . . . . . . . . 1 . . . . . . . . . . . . . . . Refit 1 | . . . . . . . . . . 1 . . . . . . . . . . . . . . . Recycling Unit Hacks 1 | . . . . . . . . . . 1 . . . . . . . . . . . . . . . Retrieve Components 1 | . . . . . . . . . . 1 . . . . . . . . . . . . . . . Scanalyzer . | . . . . . . . . . . . . . . . . . . . . . . . . . . Garrison Access Hacks 3 | . . . . . . . . . . 2 . . . . . . 1 . . . . . . . . Seal Access 3 | . . . . . . . . . . 2 . . . . . . 1 . . . . . . . . Unauthorized Hacks 5 | . . . . . . . . . . 4 . . . . . . . . . 1 . . . . . Terminals 3 | . . . . . . . . . . 3 . . . . . . . . . . . . . . . Assimilate 3 | . . . . . . . . . . 3 . . . . . . . . . . . . . . . Fabricators 1 | . . . . . . . . . . 1 . . . . . . . . . . . . . . . Recompile 1 | . . . . . . . . . . 1 . . . . . . . . . . . . . . . Repair Stations 1 | . . . . . . . . . . . . . . . . . . . . 1 . . . . . Patch 1 | . . . . . . . . . . . . . . . . . . . . 1 . . . . . Recycling Units . | . . . . . . . . . . . . . . . . . . . . . . . . . . Scanalyzers . | . . . . . . . . . . . . . . . . . . . . . . . . . . Garrison Access . | . . . . . . . . . . . . . . . . . . . . . . . . . . Data Cores Recovered 1 | . . . . . . . . . . . . . . . . . . . . 1 . . . . . Used 1 | . . . . . . . . . . . . . . . . . . . . 1 . . . . . Hacking Detections 23 | . . . . . 3 . . . . 8 . 2 . . . . 2 . 1 2 . 2 1 . 2 Full Trace Events 6 | . . . . . 2 . . . . 1 . 1 . . . . 1 . . . . . . . 1 Feedback Events 1 | . . . . . . . . . . . . . . . . . 1 . . . . . . . . Corruption 1 | . . . . . . . . . . . . . . . . . 1 . . . . . . . . Feedback Blocked . | . . . . . . . . . . . . . . . . . . . . . . . . . . Robot Schematics Acquired 9 | . . . . . . . . 5 . . . . . . . . . . . . 3 . 1 . . Robots Built . | . . . . . . . . . . . . . . . . . . . . . . . . . . Authchips . | . . . . . . . . . . . . . . . . . . . . . . . . . . Time . | . . . . . . . . . . . . . . . . . . . . . . . . . . Total Robot Build Rating . | . . . . . . . . . . . . . . . . . . . . . . . . . . Part Schematics Acquired 20 | . . . . 1 . . . 10 . . . . . . . . . . . . 8 . 1 . . Parts Built 2 | . . . . . . . . . . 1 . 1 . . . . . . . . . . . . . Authchips 1 | . . . . . . . . . . 1 . . . . . . . . . . . . . . . Time 152 | . . . . . . . . . . 76 . 76 . . . . . . . . . . . . . Total Part Build Rating 10 | . . . . . . . . . . 5 . 5 . . . . . . . . . . . . . Part Studies Acquired . | . . . . . . . . . . . . . . . . . . . . . . . . . . Parts Repaired . | . . . . . . . . . . . . . . . . . . . . . . . . . . Time . | . . . . . . . . . . . . . . . . . . . . . . . . . . Parts Recycled . | . . . . . . . . . . . . . . . . . . . . . . . . . . Recycled Matter . | . . . . . . . . . . . . . . . . . . . . . . . . . . Retrieved Matter . | . . . . . . . . . . . . . . . . . . . . . . . . . . Retrieved Components . | . . . . . . . . . . . . . . . . . . . . . . . . . . Parts Scanalyzed . | . . . . . . . . . . . . . . . . . . . . . . . . . . Part Schematics Acquired . | . . . . . . . . . . . . . . . . . . . . . . . . . . Parts Damaged . | . . . . . . . . . . . . . . . . . . . . . . . . . . Bothacking | -11 -10 -10 -8 -8 -6 -6 -6 -6 -5 -5 -5 -5 -5 -5 -5 -4 -4 -4 -4 -3 -3 -2 -2 -1 -1 ------------ Run | Yrd Mat Sub Rec Scr Fac Low Low Dat Pro Fac Was Fac Upp Upp War Pro Fac Was Fac Res Tes Res Qua Acc Com Used RIF Installer . | . . . . . . . . . . . . . . . . . . . . . . . . . . Robots Hacked . | . . . . . . . . . . . . . . . . . . . . . . . . . . Non-combat . | . . . . . . . . . . . . . . . . . . . . . . . . . . Combat . | . . . . . . . . . . . . . . . . . . . . . . . . . . Robot Hacks Applied . | . . . . . . . . . . . . . . . . . . . . . . . . . . Relay Couplers Released 4 | . . . . . . . . . . . . . . . . . . . 1 . 3 . . . . Machine Destruction 1 | . . . . . . . . . . . . . . . . . . . 1 . . . . . . Programmers 3 | . . . . . . . . . . . . . . . . . . . . . 3 . . . . Fabnet Peak Effective % . | . . . . . . . . . . . . . . . . . . . . . . . . . . Robots Rewired . | . . . . . . . . . . . . . . . . . . . . . . . . . . Allies Hacked 1 | . . . . . . . . . . . . . . . . . . . . . . . . . 1 Hacks Repelled . | . . . . . . . . . . . . . . . . . . . . . . . . . . Allies | -11 -10 -10 -8 -8 -6 -6 -6 -6 -5 -5 -5 -5 -5 -5 -5 -4 -4 -4 -4 -3 -3 -2 -2 -1 -1 -------- Run | Yrd Mat Sub Rec Scr Fac Low Low Dat Pro Fac Was Fac Upp Upp War Pro Fac Was Fac Res Tes Res Qua Acc Com Total Allies 59 | . . . . . . . . . . 6 18 . . . . . . 20 . 4 2 . . . 9 Largest Group 19 | . . . . . . . . . . 3 18 . . . . . . 19 14 3 1 . . . 3 Highest-Rated Group 684 | . . . . . . . . . . 204 638 . . . . . . 684 559 87 110 . . . 207 Highest-Rated Ally 110 | . . . . . . . . . . 68 50 . . . . . . 50 50 29 110 . . . 82 Total Orders . | . . . . . . . . . . . . . . . . . . . . . . . . . . Ally Attacks 342 | . . . . . . . . . . 13 114 . . . . . . 31 109 6 20 . . . 49 Total Damage 13926 | . . . . . . . . . . 1030 3543 . . . . . . 1249 5256 159 877 . . . 1812 Kills 62 | . . . . . . . . . . 5 8 . . . . . . 5 26 1 6 . . . 11 Allies Corrupted 2 | . . . . . . . . . . . . . . . . . . . . . . . . . 2 Allies Melted . | . . . . . . . . . . . . . . . . . . . . . . . . . . X0-1V1 Amusement Gains 544 | . 12 10 . 101 . . . . . 5 . 10 . . 95 . 2 . 32 32 38 . 109 30 68 Good Acts 127 | . . 12 . . 1 7 3 . 2 8 6 7 . 1 1 2 6 6 9 6 16 2 14 3 15 Bad Acts 89 | . . 10 1 . . 4 4 . . 11 1 6 3 3 1 5 1 6 2 4 8 . 9 3 7 Intel | -11 -10 -10 -8 -8 -6 -6 -6 -6 -5 -5 -5 -5 -5 -5 -5 -4 -4 -4 -4 -3 -3 -2 -2 -1 -1 ------- Run | Yrd Mat Sub Rec Scr Fac Low Low Dat Pro Fac Was Fac Upp Upp War Pro Fac Was Fac Res Tes Res Qua Acc Com Active Infowar (turns) 5552 | . . . . . . . . . . 743 148 301 281 172 112 270 266 262 282 339 1080 448 828 . 20 Sensors 2740 | . . . . . . . . . . 508 148 301 281 172 112 270 266 262 282 138 . . . . . Cloaking 3956 | . . . . . . . . . . 439 . . 281 172 112 100 . . 137 339 1080 448 828 . 20 Robot Analysis Total . | . . . . . . . . . . . . . . . . . . . . . . . . . . Derelict Logs Recovered 10 | . . 2 . . . . 1 . 1 . . . 2 1 . 3 . . . . . . . . . Drone Launches . | . . . . . . . . . . . . . . . . . . . . . . . . . . Drone Recoveries . | . . . . . . . . . . . . . . . . . . . . . . . . . . Exploration | -11 -10 -10 -8 -8 -6 -6 -6 -6 -5 -5 -5 -5 -5 -5 -5 -4 -4 -4 -4 -3 -3 -2 -2 -1 -1 ------------- Run | Yrd Mat Sub Rec Scr Fac Low Low Dat Pro Fac Was Fac Upp Upp War Pro Fac Was Fac Res Tes Res Qua Acc Com Turns Passed 12150 | 75 203 945 347 1407 208 185 201 28 106 870 148 302 281 172 112 270 266 334 282 339 1080 448 2917 204 420 Spaces Moved 13766 | 48 97 514 215 1726 467 420 514 82 217 1387 235 487 482 353 168 416 501 400 578 480 719 326 1748 440 746 Core 1309 | 13 . . . 530 . . . . . . . . . . . . . . . . . . 172 166 428 Treads 1850 | 35 97 514 215 312 . . . . . . . . . . . . . . . . . . 677 . . Legs 1919 | . . . . . . . . . . . . . . . . . . . . . 689 326 899 . 5 Wheels . | . . . . . . . . . . . . . . . . . . . . . . . . . . Hover 5528 | . . . . . . . 10 . . 1075 235 487 482 353 168 416 501 400 578 480 30 . . . 313 Flight 3160 | . . . . 884 467 420 504 82 217 312 . . . . . . . . . . . . . 274 . Fastest Speed 17 | 50 160 160 160 34 34 34 34 34 30 24 44 36 36 36 48 48 39 39 30 30 100 114 50 34 17 Average Speed 68 | 136 160 160 160 61 34 34 34 34 32 44 46 47 48 47 48 49 44 47 40 43 112 114 129 41 41 Slowest Speed 400 | 160 160 160 160 160 34 99 99 34 34 109 102 48 103 48 103 50 51 49 49 110 115 115 400 50 120 Overloaded Moves 141 | . . . . . . . . . . 9 . 5 5 19 . . . . 12 43 . . . . 48 Propulsion Burnouts . | . . . . . . . . . . . . . . . . . . . . . . . . . . Robots Hopped 9 | . . . . 5 3 . . . . 1 . . . . . . . . . . . . . . . Potential Cave-ins 10 | . . . . . . . . . . . . . . . . . . . 3 . . . . . 7 Cave-ins Triggered 1 | . . . . . . . . . . . . . . . . . . . . . . . . . 1 Exploration Rate (%) 44 | 3 15 52 42 76 9 59 67 72 59 30 86 16 67 67 17 48 17 95 18 20 81 13 84 16 27 Regions Visited 25 Branch Regions 14 Pre-discovered Areas 10 | . . 1 . 5 . . . 1 . . . . 1 . . 2 . . . . . . . . . Known Exits Taken 14 | . . 1 . 1 1 1 1 . 1 . . 1 1 1 1 1 . . . 1 . 1 . 1 . Unknown Exits Taken 7 | 1 1 . 1 . . . . 1 . . . . . . . . . . 1 . 1 . 1 . . Scrap Searched 14 | . . 2 . 4 . 1 2 . 1 . . . 1 1 . 2 . . . . . . . . . Spaces Dug 127 | . . . . 1 3 . 2 . 3 14 1 1 5 . 21 4 7 . 6 10 8 2 3 . 36 Terrain Destroyed 645 | . . 1 . 1 3 . 2 . 3 15 17 98 75 . 29 27 7 144 6 24 14 60 31 31 57 Melee 55 | . . . . 1 2 . 2 . 3 12 1 1 4 . 1 1 . . 6 10 8 2 1 . . Projectile 12 | . . 1 . . 1 . . . . 3 . . 2 . . . . . . . . . . 3 2 AOE 578 | . . . . . . . . . . . 16 97 69 . 28 26 7 144 . 14 6 58 30 28 55 Terrain Rammed . | . . . . . . . . . . . . . . . . . . . . . . . . . . Walls Destroyed . | . . . . . . . . . . . . . . . . . . . . . . . . . . Machines Disabled . | . . . . . . . . . . . . . . . . . . . . . . . . . . Actions | -11 -10 -10 -8 -8 -6 -6 -6 -6 -5 -5 -5 -5 -5 -5 -5 -4 -4 -4 -4 -3 -3 -2 -2 -1 -1 --------- Run | Yrd Mat Sub Rec Scr Fac Low Low Dat Pro Fac Was Fac Upp Upp War Pro Fac Was Fac Res Tes Res Qua Acc Com Total 15923 | 55 143 571 219 2060 498 450 535 81 241 1608 273 532 510 354 191 463 535 521 603 566 905 376 2341 450 842 Wait 1148 | . 43 3 . 297 9 4 1 . 9 44 19 23 12 . 10 23 . 91 . 22 28 6 448 . 56 Move 13724 | 47 96 513 214 1716 461 419 513 81 216 1385 234 486 481 352 167 415 501 399 576 479 717 325 1747 439 745 Hop 7 | . . . . 4 2 . . . . 1 . . . . . . . . . . . . . . . Pick Up 103 | 2 2 6 1 12 3 3 3 . . 25 2 2 . . . 4 3 3 3 3 14 2 7 . 3 Fast Attach 165 | 6 1 3 1 7 5 1 2 . 2 28 4 1 . . . 4 10 2 2 11 30 7 24 3 11 Attach 60 | . . 1 1 2 2 5 3 . 3 8 . 1 2 . 2 1 1 1 . 6 7 2 3 2 7 Detach 44 | . . . . 1 2 5 3 . 2 7 1 . 1 . 3 . 1 . . 5 3 1 1 2 6 Swap 48 | . . 6 . 1 . . 1 . . 7 3 3 1 . . 3 3 2 2 1 5 6 4 . . Drop 218 | . . 4 2 17 3 3 6 . 1 36 9 4 . . 1 3 11 3 6 9 41 8 46 . 5 Fire 159 | . 1 28 . . 7 7 . . 3 7 . 8 5 . 7 9 2 20 . 2 1 8 33 4 7 Melee 204 | . . 7 . 3 4 3 3 . 5 21 1 4 8 2 1 1 3 . 13 28 58 11 28 . . Ram 1 | . . . . . . . . . . . . . . . . . . . . . . . . . 1 Kick . | . . . . . . . . . . . . . . . . . . . . . . . . . . Crush . | . . . . . . . . . . . . . . . . . . . . . . . . . . Escape Stasis 42 | . . . . . . . . . . 39 . . . . . . . . 1 . 1 . . . 1 Rewire . | . . . . . . . . . . . . . . . . . . . . . . . . . . Trap . | . . . . . . . . . . . . . . . . . . . . . . . . . . Miscellaneous . | . . . . . . . . . . . . . . . . . . . . . . . . . . Route ------- -11/Scrapyard -10/Materials -10/Subcaves (discovered 2 exits: [*Mat] / *Rec) -8/Recycling -8/Scraptown (discovered 2 exits: *Fac x2) -6/Factory (discovered 3 exits: Fac x2 / *Low) -6/Lower Caves -6/Lower Caves (discovered 2 exits: *Fac / *Dat) -6/Data Miner -5/Proximity Caves -5/Factory (discovered 6 exits: *Fac x2 / *Upp x2 / Ext x2) -5/Waste -5/Factory (discovered 6 exits: *Fac x2 / *Upp x2 / Ext x2) -5/Upper Caves -5/Upper Caves (discovered 2 exits: Fac / *War) -5/Warlord -4/Proximity Caves -4/Factory (discovered 2 exits: *Res / Upp) -4/Waste -4/Factory (discovered 2 exits: *Res / Upp) -3/Research (discovered 3 exits: Arm / *Tes x2) -3/Testing -2/Research (discovered 2 exits: *Qua x2) -2/Quarantine -1/Access -1/Command (discovered 1 exit: Ac0) History --------- Turn | Location | Event 8 | -11/Scrapyard | Discovered new exit (range 15) 76 | -11/Scrapyard | Entered Materials 149 | -10/Materials | Discovered new exit (range 5) 164 | -10/Materials | Prayed at D.C.S.S. Altar Unit 279 | -10/Materials | Entered Subcaves 286 | -10/Subcaves | Learned Materials non-interactive machine intel 304 | -10/Subcaves | Build established: Mutant 310 | -10/Subcaves | Energy capacity permanently improved by X0-1V1 (+200; -100 max core) 341 | -10/Subcaves | Learned location of Zion (-7) 341 | -10/Subcaves | Met a Zionite searching for "candidates" 577 | -10/Subcaves | Curiously followed by a Cobbler waking with a query about "LVR3C" 664 | -10/Subcaves | Visited 4L-MR0's lab 674 | -10/Subcaves | Core integrity permanently improved by X0-1V1 (+200) 682 | -10/Subcaves | Heat dissipation permanently improved by X0-1V1 (+15; -75 max core) 682 | -10/Subcaves | Found Prototype Device 683 | -10/Subcaves | X0-1V1 sent hostile S-10 Pest (x3) 687 | -10/Subcaves | Found Prototype Protection 691 | -10/Subcaves | X0-1V1 activates XOMVISION 756 | -10/Subcaves | Lost 3 parts (1p1u1w) 897 | -10/Subcaves | Identified exit to Recycling 897 | -10/Subcaves | X0-1V1 revealed exit location to -8/Recycling 1014 | -10/Subcaves | Learned Materials interactive machine intel 1021 | -10/Subcaves | Discovered new exit (range 11) 1093 | -10/Subcaves | X0-1V1 activates XOMVISION 1224 | -10/Subcaves | Entered Recycling 1530 | -8/Recycling | Scanned before Scraplab entrance 1554 | -8/Recycling | Entered Scraplab 1567 | -8/Recycling | Discovered new exit (range 3) 1571 | -8/Recycling | Entered Scraptown 1688 | -8/Scraptown | Visited UFD Registry 1688 | -8/Scraptown | Registered with UFD as "Chainfunk" 1773 | -8/Scraptown | Visited Scrapoid Pod Storage 1795 | -8/Scraptown | Visited Research Penetration Think Tank 1831 | -8/Scraptown | Visited Junk Repository 1845 | -8/Scraptown | Visited Modified Component R&D 1871 | -8/Scraptown | Visited Junk Repository 1903 | -8/Scraptown | Visited Chapter 10 1933 | -8/Scraptown | Visited Cartography Club 2138 | -8/Scraptown | Found Surveybot 17 Chip 2163 | -8/Scraptown | Learned location of Lower Caves (-6) 2163 | -8/Scraptown | Learned location of Proximity Caves (-6) 2163 | -8/Scraptown | Learned location of Armory (-3) 2163 | -8/Scraptown | Learned location of Quarantine (-2) 2163 | -8/Scraptown | Learned 8 Materials zone layouts 2163 | -8/Scraptown | Learned 12 Research zone layouts 2163 | -8/Scraptown | Learned 16 Materials zone layouts 2163 | -8/Scraptown | Learned 16 Upper Caves zone layouts 2163 | -8/Scraptown | Learned 24 Upper Caves zone layouts 2163 | -8/Scraptown | Learned 12 Proximity Caves zone layouts 2163 | -8/Scraptown | Learned location of 2 exits from Factory 2163 | -8/Scraptown | Learned location of 2 exits from Research 2163 | -8/Scraptown | Learned location of 3 exits from Lower Caves 2163 | -8/Scraptown | Identified exit to Factory 2167 | -8/Scraptown | Found Deep Structural Scanner 2203 | -8/Scraptown | Visited IN-MT5's Study 2214 | -8/Scraptown | Visited Red Mages 2221 | -8/Scraptown | Visited TADAMA 2228 | -8/Scraptown | Visited Awakened 2231 | -8/Scraptown | Visited The Evicted 2237 | -8/Scraptown | Visited Symbiants 2246 | -8/Scraptown | Visited CPS Storage 2459 | -8/Scraptown | Identified Sfc. Transmogrifier 2786 | -8/Scraptown | Visited Derelict Rescue Squad 2788 | -8/Scraptown | Found DRS Beacon 2808 | -8/Scraptown | Found Scrapoid Pod 2942 | -8/Scraptown | Attacked by Scraptown defenders 2945 | -8/Scraptown | Stole IN-MT5's Pitchfork schematic 2960 | -8/Scraptown | Core integrity fell below 50% 2960 | -8/Scraptown | Core integrity fell below 20% 2962 | -8/Scraptown | X0-1V1 rescued you from certain death 2978 | -8/Scraptown | Entered Factory 2978 | -6/Factory | Evolved 8 slots: Propulsion x4, Utility x4 2979 | -6/Factory | Identified exit to Factory 2980 | -6/Factory | Identified exit to Lower Caves 3065 | -6/Factory | X0-1V1 activates XOMVISION 3186 | -6/Factory | Entered Lower Caves 3187 | -6/Lower Caves | Identified exit to Lower Caves 3202 | -6/Lower Caves | Encountered a Warlord checkpoint 3215 | -6/Lower Caves | X0-1V1 downgraded hostiles (x2) 3217 | -6/Lower Caves | Attracted the attention of an 0b10 outpost 3269 | -6/Lower Caves | X0-1V1 activates XOMVISION 3320 | -6/Lower Caves | X0-1V1 sent hostile S-27 Virus (x3) 3371 | -6/Lower Caves | Entered another Lower Caves area 3372 | -6/Lower Caves | Identified exit to Data Miner 3408 | -6/Lower Caves | X0-1V1 sent hostile H-55 Commando (x2) 3518 | -6/Lower Caves | Entered a destroyed Warlord outpost 3524 | -6/Lower Caves | System corruption reached 10% 3537 | -6/Lower Caves | Learned location of 1 exit from Lower Caves 3572 | -6/Lower Caves | Entered Data Miner 3572 | -6/Data Miner | Discovered new exit (range 6) 3578 | -6/Data Miner | Met Data Miner 3586 | -6/Data Miner | Learned location of Section 7 (-2) 3586 | -6/Data Miner | Acquired the access code to Warlord's prototype stash 3592 | -6/Data Miner | Received God Mode back door access code from Data Miner 3600 | -6/Data Miner | Entered Proximity Caves 3602 | -5/Proximity Caves | Attracted the attention of an 0b10 checkpoint 3625 | -5/Proximity Caves | Spotted B-75 Beast 3672 | -5/Proximity Caves | Core integrity restored by X0-1V1 (+192) 3678 | -5/Proximity Caves | Learned Factory non-interactive machine intel 3679 | -5/Proximity Caves | Lost 5 parts (3n1u1w) 3706 | -5/Proximity Caves | Entered Factory 3706 | -5/Factory | Evolved 2 slots: Utility x1, Weapon x1 3707 | -5/Factory | Identified exit to Upper Caves 3708 | -5/Factory | Loaded intel: 230 non-interactive machine locations 3733 | -5/Factory | X0-1V1 mutated your Propulsion slot to Power slot 3817 | -5/Factory | X0-1V1 redirected Transport squads to designated parking area 3860 | -5/Factory | Sensors blinded by X0-1V1 3896 | -5/Factory | Identified exit to Factory 3896 | -5/Factory | X0-1V1 revealed exit location to -4/Factory 3909 | -5/Factory | X0-1V1 added 0b10 threat records associated with you (minor) 4039 | -5/Factory | Spotted B-75 Beast 4063 | -5/Factory | X0-1V1 sent you to a vault 4157 | -5/Factory | X0-1V1 upgraded hostiles (x1) 4157 | -5/Factory | Spotted B-86 Titan 4158 | -5/Factory | Incoming investigation squad redirected 4296 | -5/Factory | Discovered exit to Upper Caves (range 11) 4415 | -5/Factory | Fabricated IN-MT5's Pitchfork "Insurrection"? 4449 | -5/Factory | Identified exit to Extension 4515 | -5/Factory | Discovered exit to Factory (range 7) 4576 | -5/Factory | Sucked down chute 4576 | -5/Factory | Entered Waste 4582 | -5/Waste | Found Broken Gamma Bomb Array 4586 | -5/Waste | Spotted C-40 Crusher 4591 | -5/Waste | 1 allies followed down the chute 4591 | -5/Waste | EMP discharged 4604 | -5/Waste | Spotted C-40 Crusher 4613 | -5/Waste | Met Warlord forces unprepared to attack 4648 | -5/Waste | Spotted C-40 Crusher 4649 | -5/Waste | Allies destroyed C-40 Crusher 4679 | -5/Waste | Spotted C-40 Crusher 4680 | -5/Waste | Lost 5 allies 4686 | -5/Waste | X0-1V1 activates XOMVISION 4691 | -5/Waste | EMP discharged 4691 | -5/Waste | System corruption reached 10% 4708 | -5/Waste | Allies destroyed C-40 Crusher 4716 | -5/Waste | Discovered new exit (range 16) 4716 | -5/Waste | Spotted C-40 Crusher 4723 | -5/Waste | Identified exit to Factory 4724 | -5/Waste | Entered Factory 4736 | -5/Factory | Lost 3 allies 4797 | -5/Factory | X0-1V1 activates XOMVISION 4827 | -5/Factory | X0-1V1 enhanced Transport squad support 4872 | -5/Factory | Discovered exit to Factory (range 12) 4877 | -5/Factory | X0-1V1 revealed exit location to -4/Factory 4885 | -5/Factory | Fabricated IN-MT5's Pitchfork "Insurrection" (x1) 4929 | -5/Factory | X0-1V1 mutated your Utility slot to Weapon slot 5026 | -5/Factory | Entered Upper Caves 5027 | -5/Upper Caves | Identified exit to Upper Caves 5205 | -5/Upper Caves | Encountered a Warlord checkpoint 5307 | -5/Upper Caves | Entered another Upper Caves area 5308 | -5/Upper Caves | Identified exit to Warlord 5318 | -5/Upper Caves | X0-1V1 activates XOMVISION 5367 | -5/Upper Caves | Encountered a Warlord checkpoint 5420 | -5/Upper Caves | Learned location of 1 exit from Upper Caves 5429 | -5/Upper Caves | X0-1V1 vaporized surrounding terrain (radius 20) 5479 | -5/Upper Caves | Entered Warlord 5480 | -5/Warlord | Identified exit to Proximity Caves 5504 | -5/Warlord | Warlord's base attacked by MAIN.C 5509 | -5/Warlord | Opened side exit 5515 | -5/Warlord | Attacked by Warlord forces 5591 | -5/Warlord | Entered Proximity Caves 5594 | -4/Proximity Caves | Spotter reported a threat 5594 | -4/Proximity Caves | Spotter reported a threat 5604 | -4/Proximity Caves | X0-1V1 sent you into danger 5651 | -4/Proximity Caves | Encountered a Derelict sapper outpost 5689 | -4/Proximity Caves | X0-1V1 upgraded hostiles (x2) 5744 | -4/Proximity Caves | X0-1V1 sent you into danger 5843 | -4/Proximity Caves | Discovered exit to Factory (range 12) 5848 | -4/Proximity Caves | Learned 4 Research zone layouts 5851 | -4/Proximity Caves | X0-1V1 sent you into danger 5860 | -4/Proximity Caves | X0-1V1 activates XOMVISION 5861 | -4/Proximity Caves | Entered Factory 5861 | -4/Factory | Evolved 2 slots: Propulsion x1, Utility x1 5862 | -4/Factory | Identified exit to Upper Caves 5984 | -4/Factory | X0-1V1 tapped a No Entrance sign 6000 | -4/Factory | X0-1V1 sent you to a vault 6004 | -4/Factory | Found Prototype Slashing Weapon 6004 | -4/Factory | Identified Hvy. Scimitar of Distortion 6010 | -4/Factory | Found Prototype Hackware 6010 | -4/Factory | Identified Ghost Barrier 6039 | -4/Factory | X0-1V1 released a cloud of subatomizers 6093 | -4/Factory | Discovered new exit (range 9) 6111 | -4/Factory | Search patrols dispatched 6127 | -4/Factory | Sucked down chute 6127 | -4/Factory | Entered Waste 6128 | -4/Waste | Met a frightened Derelict 6131 | -4/Waste | Spotted C-40 Crusher 6156 | -4/Waste | Spotted C-40 Crusher 6172 | -4/Waste | Spotted C-40 Crusher 6196 | -4/Waste | Destroyed C-40 Crusher 6196 | -4/Waste | Destroyed C-40 Crusher 6212 | -4/Waste | Destroyed C-40 Crusher 6218 | -4/Waste | Spotted C-40 Crusher 6222 | -4/Waste | Destroyed C-40 Crusher 6236 | -4/Waste | Discovered new exit (range 3) 6236 | -4/Waste | X0-1V1 whisked you away to safety 6282 | -4/Waste | Warlord forces began an assault 6287 | -4/Waste | X0-1V1 sent you into danger 6296 | -4/Waste | Spotted C-40 Crusher 6302 | -4/Waste | Allies destroyed C-40 Crusher 6307 | -4/Waste | X0-1V1 mutated your Weapon slot to Utility slot 6332 | -4/Waste | Lost 5 allies 6380 | -4/Waste | Sensors blinded by X0-1V1 6461 | -4/Waste | Entered Factory 6461 | -4/Factory | Accompanied by 14 allies 6468 | -4/Factory | Garrison activated, responded to threat 6540 | -4/Factory | X0-1V1 activates XOMVISION 6557 | -4/Factory | X0-1V1 sent you to a vault 6564 | -4/Factory | Found Fusion Bomb Launcher 6578 | -4/Factory | Found Prototype Device 6578 | -4/Factory | Identified Exp. Cloaking Device 6657 | -4/Factory | Discovered new exit (range 13) 6665 | -4/Factory | System corruption reached 10% 6668 | -4/Factory | X0-1V1 revealed exit location to -4/Upper Caves 6711 | -4/Factory | First assault squad dispatched 6729 | -4/Factory | Incoming assault squad redirected 6740 | -4/Factory | Incoming assault squad redirected 6743 | -4/Factory | Entered Research 6743 | -3/Research | Evolved 2 slots: Propulsion x1, Utility x1 6744 | -3/Research | Identified exit to Armory 6744 | -3/Research | Identified exit to Testing 6801 | -3/Research | X0-1V1 activates XOMVISION 6820 | -3/Research | Found Prototype Launcher 6820 | -3/Research | Identified Tesla Bomb Launcher 6869 | -3/Research | Found Prototype Launcher 6869 | -3/Research | Identified Smartbomb Launcher 6935 | -3/Research | Lost 3 parts (1n2u) 7000 | -3/Research | X0-1V1 announced a LAN party 7025 | -3/Research | X0-1V1 activates XOMVISION 7061 | -3/Research | Spotted B-86 Titan 7065 | -3/Research | Reprogrammed and armed K-01 Serf 7068 | -3/Research | X0-1V1 sent allied Savage (x3) 7082 | -3/Research | Entered Testing 7111 | -3/Testing | Lost 4 allies 7123 | -3/Testing | Found Prototype Leg 7123 | -3/Testing | Identified Myomer Exoskeleton 7167 | -3/Testing | X0-1V1 sent you to a vault 7194 | -3/Testing | Found Prototype Reactor 7194 | -3/Testing | Identified Vortex Chain Reactor 7201 | -3/Testing | Found Hvy. Scimitar of Distortion 7204 | -3/Testing | Found Hvy. Scimitar of Distortion 7214 | -3/Testing | Found Hvy. Scimitar of Distortion 7227 | -3/Testing | Found Prototype Reactor 7267 | -3/Testing | X0-1V1 sent allied Lightning (x1) 7307 | -3/Testing | X0-1V1 whisked you away to safety 7332 | -3/Testing | First assault squad dispatched 7356 | -3/Testing | Incoming assault squad redirected 7374 | -3/Testing | Found Prototype Hackware 7451 | -3/Testing | X0-1V1 sent allied Striker (x1) 7470 | -3/Testing | Discovered new exit (range 16) 7545 | -3/Testing | X0-1V1 foreshadows a heat wave 7548 | -3/Testing | Found Prototype Launcher 7548 | -3/Testing | Identified Z-bomb Delivery System 7564 | -3/Testing | X0-1V1 added 0b10 threat records associated with you (minor) 7671 | -3/Testing | Ambient heat levels rising (+10) 7687 | -3/Testing | Found Prototype Launcher 7841 | -3/Testing | Ambient heat levels rising (+10) 7985 | -3/Testing | Found Prototype Device 7985 | -3/Testing | Identified Exp. Thermal Shield 7987 | -3/Testing | Ambient heat levels falling (-10) 8033 | -3/Testing | Found Prototype Energy Cannon 8122 | -3/Testing | Ambient heat levels falling (-10) 8162 | -3/Testing | Entered Research 8162 | -2/Research | Evolved 2 slots: Power x1, Utility x1 8163 | -2/Research | Identified exit to Quarantine 8168 | -2/Research | X0-1V1 revealed exit location to -2/Quarantine 8497 | -2/Research | Identified Potential Cannon 8527 | -2/Research | Identified Hellfire Missile Launcher 8610 | -2/Research | Entered Quarantine 8649 | -2/Quarantine | Identified Singularity Reactor 8650 | -2/Quarantine | Found Alien Slashing Weapon 8651 | -2/Quarantine | X0-1V1 activates XOMVISION 8653 | -2/Quarantine | Identified Sigix Broadsword 8977 | -2/Quarantine | Cryocooling Duct disabled 8992 | -2/Quarantine | Ambient heat levels rising (+20) 8992 | -2/Quarantine | Non-combat units ordered to evacuate 9006 | -2/Quarantine | Cryocooling Duct disabled 9021 | -2/Quarantine | Ambient heat levels rising (+20) 9021 | -2/Quarantine | Combat units ordered to evacuate 9121 | -2/Quarantine | Quarantine Guard activated 9144 | -2/Quarantine | Found Alien Artifact 9144 | -2/Quarantine | Identified Dimensional Node Initializer 9144 | -2/Quarantine | Initialized slip node 9153 | -2/Quarantine | Found Alien Artifact 9211 | -2/Quarantine | X0-1V1 announced a LAN party 9413 | -2/Quarantine | Spotted Quarantine Guard 9432 | -2/Quarantine | Destroyed Quarantine Guard 9477 | -2/Quarantine | Spotted Quarantine Guard 9482 | -2/Quarantine | Destroyed Quarantine Guard 9518 | -2/Quarantine | Spotted Quarantine Guard 9557 | -2/Quarantine | Destroyed Quarantine Guard 9583 | -2/Quarantine | Spotted Quarantine Guard 9598 | -2/Quarantine | Spotted Quarantine Guard 9623 | -2/Quarantine | Destroyed Quarantine Guard 9638 | -2/Quarantine | Destroyed Quarantine Guard 9649 | -2/Quarantine | Spotted Quarantine Guard 9670 | -2/Quarantine | Destroyed Quarantine Guard 9731 | -2/Quarantine | Spotted Quarantine Guard 9740 | -2/Quarantine | Destroyed Quarantine Guard 9762 | -2/Quarantine | System corruption reached 10% 9801 | -2/Quarantine | Build established: Scavenger-Mutant 9936 | -2/Quarantine | Cryocooling Duct disabled 9943 | -2/Quarantine | Cryocooling Duct disabled 9950 | -2/Quarantine | Cryocooling Duct disabled 9950 | -2/Quarantine | Spotted Quarantine Guard 9951 | -2/Quarantine | Ambient heat levels rising (+20) 9958 | -2/Quarantine | Ambient heat levels rising (+20) 9965 | -2/Quarantine | Ambient heat levels rising (+20) 9969 | -2/Quarantine | Destroyed Quarantine Guard 9988 | -2/Quarantine | Cryocooling Duct disabled 10003 | -2/Quarantine | Ambient heat levels rising (+20) 10023 | -2/Quarantine | Cryocooling Duct disabled 10038 | -2/Quarantine | Ambient heat levels rising (+20) 10256 | -2/Quarantine | Met incapacitated Sigix Warrior 10256 | -2/Quarantine | Lockdown squad dispatched 10987 | -2/Quarantine | Discovered new exit (range 15) 11073 | -2/Quarantine | System corruption reached 30% 11079 | -2/Quarantine | X0-1V1 sent hostile P-80 Master (x3) 11372 | -2/Quarantine | X0-1V1 vaporized surrounding terrain (radius 19) 11442 | -2/Quarantine | Core integrity fell below 50% 11484 | -2/Quarantine | Core integrity fell below 20% 11493 | -2/Quarantine | X0-1V1 activates XOMVISION 11498 | -2/Quarantine | X0-1V1 rescued you from certain death 11527 | -2/Quarantine | Entered Access 11527 | -1/Access | Evolved 2 slots: Propulsion x2 11609 | -1/Access | Identified exit to Command 11609 | -1/Access | X0-1V1 revealed exit location to -1/Command 11650 | -1/Access | Energy Cycler disabled 11724 | -1/Access | Build established: Mutant 11731 | -1/Access | Entered Command 11802 | -1/Command | X0-1V1 mutated your Weapon slot to Propulsion slot 11858 | -1/Command | X0-1V1 turns hostiles against one another 11858 | -1/Command | Reprogrammed and armed K-01 Serf 11861 | -1/Command | Reprogrammed and armed K-01 Serf 11864 | -1/Command | Reprogrammed and armed K-01 Serf 11880 | -1/Command | X0-1V1 sent allied H-77 Assassin (x2) 11919 | -1/Command | Lost 3 allies 11926 | -1/Command | Core integrity fell below 50% 11990 | -1/Command | X0-1V1 sent you to a vault 12049 | -1/Command | Identified exit to Access_0 12049 | -1/Command | X0-1V1 revealed exit location to -1/Access_0 12053 | -1/Command | Spotted M Guard 12053 | -1/Command | Spotted M Guard 12053 | -1/Command | Spotted Combat Programmer 12053 | -1/Command | Spotted Combat Programmer 12067 | -1/Command | X0-1V1 vaporized surrounding terrain (radius 17) 12068 | -1/Command | Crushed by falling debris 12087 | -1/Command | Met MAIN.C 12101 | -1/Command | 0b10 Conduit disabled 12118 | -1/Command | Core integrity fell below 20% 12146 | -1/Command | System corruption reached 10% 12151 | -1/Command | Destroyed by P-80 Master with Gamma Rifle Last Messages --------------- So if you wouldn't mind, it's time to surrender. 12089_ System corrupted: Heat flow error (+223). 12089_ X0-1V1 sends the all clear message. (reinforcement recalled) 12094_ Drone sends a signal. X0-1V1's Piety Tracker suddenly appears amidst shimmering waves of color. 12101_ X0-1V1: "Fire in the hole!" 12101_ 0b10 Conduit disabled. 12101_ Cld. Linear Gravjet destroyed. 12103_ Adv. Cloaking Device destroyed. 12105_ X0-1V1 manipulates the space around you (+19% TH resistance). 12111_ Dropped Exp. Energy Well. 12112_ Extracted 11 energy. 12112_ Heavy Barrier breached. 12113_ Extracted 101 energy. 12115_ Acquired Exp. Energy Well. 12131_ X0-1V1: "Heat sink stocks are down. Don't ask me how I know." (+112 heat dissipation) 12133_ Adv. Force Field destroyed. X0-1V1's Piety Tracker suddenly appears amidst shimmering waves of color. 12151_ X0-1V1 laughs nastily! Map ----- +----------------------------------------------------+ | ?????????????????????????????????????????????????? | | ?????????????????????????????????????????????????? | | ?????????????????????????????????????????????????? | | ?????????????????????????????????????????????????? | | ?????????????????????????????????????????????????? | | ??????????????????????????#################??????? | | ??????????????????????"""""" """" #??????? | | ????????????????????#"" "" #??????? | | ????????????????????#""""" " ######## | | ????????????????????#"""""""""" " | | ????????????????????#" " "" " | | ????????????????????#"" """""" " | | ????????????????????#"" """""" ######## | | ????????????????????# " """""" #??????? | | ????????????????????# " #??????? | | ????????????????????# ""#??????? | | ????????????????????#""""" " " ""#??????? | | ????????????????????#"" " """"""#??????? | | ????????????????????# """""""""""#??????? | | ????????????????????# " " " " #??????? | | ???????????????????## ! " " " " #??????? | | ???????????????????" " " " """" " #??????? | | ???????????????????" """ " " """" #??????? | | ???????????????????"" " " " " #??????? | | ????????????????????# """""""""" " #??????? | | ????????????????????# "@ " " """"""""???????? | | ????????????????????# p "" " " ???????????? | | ????????????????????#################????????????? | | ?????????????????????????????????????????????????? | | ?????????????????????????????????????????????????? | | ?????????????????????????????????????????????????? | | ?????????????????????????????????????????????????? | | ?????????????????????????????????????????????????? | | ?????????????????????????????????????????????????? | | ?????????????????????????????????????????????????? | | ?????????????????????????????????????????????????? | | ?????????????????????????????????????????????????? | | ?????????????????????????????????????????????????? | | ?????????????????????????????????????????????????? | | ?????????????????????????????????????????????????? | | ?????????????????????????????????????????????????? | | ?????????????????????????????????????????????????? | | ?????????????????????????????????????????????????? | | ?????????????????????????????????????????????????? | | ?????????????????????????????????????????????????? | | ?????????????????????????????????????????????????? | | ?????????????????????????????????????????????????? | | ?????????????????????????????????????????????????? | | ?????????????????????????????????????????????????? | | ?????????????????????????????????????????????????? | +----------------------------------------------------+ Best States ------------- Heat Dissipation 192 Energy Generation 75 Energy Capacity 2400 Matter Stores 1100 Matter Capacity 1300 Sight Range 22 Robot Scan Range 16 Terrain Scan Density 10 Cloak Strength 4 Power Amplification 20 Base Temperature (-) 200 Armor Coverage 675 Resistance: KI 31 Resistance: TH 19 Propulsion Shielding 66 Utility Shielding 90 Weapon Cycling 25 Evasion (%) 82 Targeting Accuracy 13 Melee Accuracy 8 Launcher Accuracy 30 Core Analysis 6 Armor Integrity Analysis 30 Recoil Reduction 6 Offensive Hacking 26 Defensive Hacking 22 Authchip Count 1 Item Schematics ----------------- IN-MT5's Pitchfork "Insurrection" | -8/Scraptown | Archive Combat Drone Bay | -6/Data Miner | Free Lgt. Regenerative Plating | -6/Data Miner | Free Enh. Flexi-carbon Leg | -6/Data Miner | Free Imp. Matter Compressor | -6/Data Miner | Free Cld. Plasma Rifle | -6/Data Miner | Free Imp. Gyrokinetic Inverter | -6/Data Miner | Free Lrn. Terrain Scanner | -6/Data Miner | Free Force Lance | -6/Data Miner | Free Variable Charge Gun | -6/Data Miner | Free Particle Reactor | -6/Data Miner | Free Mni. Smartbomb Launcher | -3/Testing | Archive Lgt. Neutrino Core | -3/Testing | Archive Hds. Centrium Wheel | -3/Testing | Archive Plasma Lance | -3/Testing | Archive Exp. Signal Interpreter | -3/Testing | Archive Prc. Energy Filter | -3/Testing | Archive Exp. Thermal Shield | -3/Testing | Archive Smartbomb Launcher | -3/Testing | Archive Spectral Analyzer | -2/Quarantine | Archive Robot Schematics ------------------ G-50 Soldier | -6/Data Miner | Free R-10 Processor | -6/Data Miner | Free S-27 Virus | -6/Data Miner | Free E-15 Imp | -6/Data Miner | Free G-67 Veteran | -6/Data Miner | Free S-43 Plague | -3/Testing | Archive Y-64 Sentinel | -3/Testing | Archive L-61 Swordsman | -3/Testing | Archive M-36 Artificer | -2/Quarantine | Archive Fabricated ------------ IN-MT5's Pitchfork "Insurrection" | x1 | -5/Factory | Authchip IN-MT5's Pitchfork "Insurrection" | x1 | -5/Factory Repaired ---------- Nothing Studied --------- None Alien Tech Used ----------------- Sigix Broadsword Dimensional Node Initializer Achievements -------------- Recruitment Drive Challenges ------------ None Game ------ Seed PhysicsNavigationTreads Manual? 0 Play Time 02:09:58 Cumulative 537.6 hours Start 2026.06.28 @ 13:55:20 End 2026.06.28 @ 16:05:19 Sessions 1 Manual Loads 0 Difficulty Rogue Special Mode None Game No. 448 Rogue 412 Adventurer 36 Explorer 0 Win Type - Total 26 Types 10/0/14/0/0/1/1/0/0/0 Lore% 73 Gallery% 85 Achievement% 73 Wizard Run 0 Options --------- Layout 0 ASCII 0 Keyboard 0 Movement Mouse Keybinds 0 Fullscreen 1 Font 18/SmallcapsGlow Map View 76x50 Zoom Use 0% Tactical HUD 1 Map Filters NONE Filters NONE Steam 1 RUN: 32709bfd-be6d-4625-a068-063898a1d688